[Event "7th Sharjah Masters 2024"]
[Site "Sharjah"]
[Date "2024.05.20"]
[Round "7.22"]
[White "Gledura, Benjamin"]
[Black "Gavrilescu, David"]
[Result "1-0"]
[ECO "A17"]
[WhiteElo "2619"]
[BlackElo "2540"]
[Annotator "TA"]
[PlyCount "121"]
[EventDate "2024.05.13"]
[EventType "swiss"]
[EventCountry "UAE"]
[SourceTitle "playchess.com"]
[Source "ChessBase"]
[SourceQuality "1"]
[TimeControl "5400+30"]

{[%evp 36,121,40,37,39,49,41,38,39,37,41,43,44,43,53,29,55,42,41,41,63,68,63,61,76,23,19,23,31,32,43,16,9,16,17,11,25,23,60,37,37,24,75,75,120,104,100,104,78,67,69,72,242,234,258,256,281,277,366,273,450,238,471,462,807,745,875,820,862,866,904,882,689,599,732,670,1689,1462,29968,29970,29974,29975,29975,29976,29976,29978,29974,29975]} 1. Nf3 {[%emt 1:31:00]} d5 {[%emt 1:31:00]} 2. e3 {[%emt 0:00:30]} Nf6 {[%emt 0:00:30]} 3. c4 {[%emt 0:00:30]} e6 {[%emt 0:00:30]} 4. Nc3 {[%emt 0:00:30]} c5 {[%emt 0:00:30]} 5. cxd5 {[%emt 0:00:30]} exd5 {[%emt 0:00:30]} 6. Bb5+ {[%emt 0:00:30] A17: English Opening: 1...Nf6 with ...Bb4.} Nc6 {[%emt 0:00:30] The main line 6...Nc6 scores better than 6...Bd7.} 7. Ne5 {[%emt 0:00:30]} Bd7 {[%emt 0:00:30]} 8. Bxc6 {[%emt 0:00:30]} bxc6 {[%emt 0:00:30]} 9. Nxd7 {[%emt 0:00:30]} Nxd7 {[%emt 0:00:30]} 10. O-O {[%emt 0:00:30]} Bd6 {[%emt 0:00:30]} 11. d3 {[%emt 0:00:30]} O-O {[%emt 0:00:30]} 12. e4 {[%emt 0:00:30]} Be5 $146 {[%emt 0:00:30]} ({Predecessor:} 12... Nb6 13. a4 a5 14. exd5 Nxd5 15. Ne4 Be5 16. Rb1 Re8 17. g3 Bd4 18. Bd2 Nb4 19. Bxb4 cxb4 {0-1 Liu,Y (2579)-Wen,Y (2574) CHN-chT Div A Finals 2023 (5.1)}) 13. exd5 {[%emt 0:00:30]} Bxc3 {[%emt 0:00:30]} 14. dxc6 {[%emt 0:00:30]} Bd4 {[%emt 0:00:30]} 15. cxd7 {[%emt 0:00:30]} Qxd7 {[%emt 0:00:30]} 16. Rb1 {[%emt 0:00:30]} Rfe8 {[%emt 0:00:30]} 17. b3 {[%emt 0:00:30]} Rad8 {[%emt 0:00:30]} 18. Bb2 {[%emt 0:00:30]} Bxb2 {[%emt 0:00:30]} 19. Rxb2 {[%emt 0:00:30]} Qxd3 {[%emt 0:00:30]} 20. Qxd3 {[%emt 0:00:30]} Rxd3 {[%emt 0:00:30]} 21. Rc2 {[%emt 0:00:30]} Rd5 {[%emt 0:00:30]} 22. Rfc1 {[%emt 0:00:30]} g6 {[%emt 0:00:30]} 23. Kf1 {[%emt 0:00:30]} (23. Rxc5 $2 {is the wrong capture.} Rxc5 24. Rf1 Rc2 $19) 23... Ree5 {[%emt 0:00:30]} 24. Re1 {[%emt 0:00:30]} Rf5 {[%emt 0:00:30]} 25. h4 {[%emt 0:00:30]} Rd4 {[%emt 0:00:30]} 26. g3 {[%emt 0:00:30]} Kf8 {[%emt 0:00:30]} 27. Re3 {[%emt 0:00:30]} Rb4 {[%emt 0:00:30]} 28. Rec3 {[%emt 0:00:30]} Rb5 $1 {[%emt 0:00:30]} 29. Rd2 {[%emt 0:00:30]} Ra5 {[%emt 0:00:30]} 30. Re3 {[%emt 0:00:30]} (30. a4 $16) 30... Ra3 $11 {[%emt 0:00:30]} 31. Ke2 {[%emt 0:00:30]} h5 {[%emt 0:00:30]} 32. Re4 {[%emt 0:00:30]} Rf6 {[%emt 0:00:30]} 33. Rc4 {[%emt 0:00:30]} Re6+ {[%emt 0:00:30]} 34. Kd1 {[%emt 0:00:30]} Rea6 {[%emt 0:00:30]} 35. Rcc2 {[%emt 0:00:30]} Ke7 {[%emt 0:00:30]} 36. Kc1 {[%emt 0:00:30]} R3a5 {[%emt 0:00:30]} 37. Kb1 {[%emt 0:00:30]} Rd6 {[%emt 0:00:30]} 38. Kb2 {[%emt 0:00:30]} Rb5 {[%emt 0:00:30]} (38... Rxd2 $11 39. Rxd2 Ke6) 39. Re2+ $16 {[%emt 0:00:30]} Re6 {[%emt 0:00:30]} 40. a4 {[%emt 0:00:30]} Ra5 41. Rxe6+ {[%emt 0:00:30]} Kxe6 {[%emt 0:01:00]} 42. Re2+ {[%emt 0:00:30]} Kd6 {[%emt 0:00:30]} 43. Rd2+ $1 {[%emt 0:00:30]} Ke6 $2 {[%emt 0:00:30] [#]} (43... Kc6 $16) 44. Kc3 $1 $18 {[%emt 0:00:30]} Ra6 {[%emt 0:00:30]} 45. Kc4 {[%emt 0:00:30]} Rb6 {[%emt 0:00:30]} 46. Rd3 $1 {[%emt 0:00:30]} (46. Kxc5 Rxb3 47. a5 f6 $11) 46... Rb4+ {[%emt 0:00:30]} 47. Kxc5 {[%emt 0:00:30]} a5 $2 {[%emt 0:00:30]} (47... Rb8 48. b4 Ke7) 48. Kc6 {[%emt 0:00:30]} (48. Rd6+ $142 Kf5 49. Rb6) 48... f6 $2 {[%emt 0:00:30]} (48... Kf6 49. Rd6+ Kg7) 49. Rd6+ $18 {[%emt 0:00:30]} Kf5 {[%emt 0:00:30]} (49... Ke7 $142 50. Rd7+ Ke6) 50. Rd5+ $18 {[%emt 0:00:30]} Kg4 {[%emt 0:00:30] [#]} 51. Rb5 $1 {[%emt 0:00:30]} (51. Rxa5 Rxb3 52. Rb5 Rc3+ 53. Kb6 Rc2 $14) 51... Re4 {[%emt 0:00:30]} 52. Rxa5 {[%emt 0:00:30]} Kf3 {[%emt 0:00:30]} 53. Rc5 Kxf2 {[%emt 0:00:30]} 54. Rc3 {[%emt 0:01:00]} g5 {[%emt 0:00:30]} 55. a5 {[%emt 0:00:30]} gxh4 {[%emt 0:00:30]} 56. gxh4 {[%emt 0:00:30]} f5 {[%emt 0:00:30]} 57. a6 {[%emt 0:00:30]} Re6+ {[%emt 0:00:30]} 58. Kb7 {[%emt 0:00:30]} Re7+ {[%emt 0:00:30]} 59. Rc7 {[%emt 0:00:30]} Re3 {[%emt 0:00:30]} 60. b4 {[%emt 0:00:30]} Rb3 {[%emt 0:00:30]} 61. Rc4 {[%emt 0:00:30]} 1-0

[Event "7th Sharjah Masters 2024"]
[Site "Sharjah"]
[Date "2024.05.20"]
[Round "7.23"]
[White "Sivuk, Vitaly"]
[Black "Petrosyan, Manuel"]
[Result "1/2-1/2"]
[ECO "C38"]
[WhiteElo "2544"]
[BlackElo "2618"]
[Annotator "TA"]
[PlyCount "82"]
[EventDate "2024.05.13"]
[EventType "swiss"]
[EventCountry "UAE"]
[SourceTitle "playchess.com"]
[Source "ChessBase"]
[SourceQuality "1"]
[TimeControl "5400+30"]

{[%evp 26,82,306,301,240,-245,-247,-230,-231,-236,-231,-235,-63,-62,-62,-74,13,11,10,14,37,31,17,14,14,16,14,10,17,20,16,16,55,35,39,0,0,-117,0,0,0,0,0,0,0,0,0,0,0,0,0,0,0,0,0,0,0,0,0]} 1. e4 {[%emt 0:00:06]} e5 {[%emt 0:02:01]} 2. f4 {[%emt 0:00:12]} exf4 {[%emt 0:01:34]} 3. Nf3 {[%emt 0:00:08]} h6 {[%emt 0:05:44]} 4. Bc4 {[%emt 0:03:15]} g5 {[%emt 0:00:50]} 5. d4 {[%emt 0:02:51]} Bg7 {[%emt 0:02:21]} 6. O-O {[%emt 0:01:03]} Ne7 {[%emt 0:04:56] C38: King's Gambit Accepted: 3 Nf3 g5 4 Bc4 Bg7.} 7. g3 {[%emt 0:11:28]} d5 {[%emt 0:06:18]} 8. exd5 {[%emt 0:00:44]} fxg3 {[%emt 0:04:52]} 9. Ne5 {[%emt 0:04:24]} gxh2+ {[%emt 0:02:12]} 10. Kh1 {[%emt 0:00:08]} O-O {[%emt 0:06:27]} 11. Nc3 $146 {[%emt 0:07:33]} ({Predecessor:} 11. Nxf7 Qe8 12. Nxh6+ Kh7 13. Rxf8 Qxf8 14. Ng4 b5 15. Bxb5 Bxd4 16. Qxd4 Qf3+ 17. Kxh2 Qxg4 {1-0 Hanison,B-Green,S ENG corr England 2000}) 11... b5 {[%emt 0:01:04]} 12. Bb3 {[%emt 0:10:53]} Bb7 {[%emt 0:00:10]} 13. Qh5 {[%emt 0:13:26]} Ng6 $2 {[%emt 0:25:12][%mdl 8192]} (13... Nd7 $11 {and Black stays safe.} 14. Ng4 (14. Nxf7 $2 Qe8 $19) 14... a5 (14... b4 15. Nxh6+ Bxh6 $18)) 14. Ng4 $18 {[%emt 0:09:27]} (14. Nxb5 $2 Nxe5 (14... Bxd5+ $2 15. Nf3 $19) 15. dxe5 Bxd5+ 16. Kxh2 Bxb3 (16... Bxe5+ $2 17. Kg1 $19) 17. axb3 Nc6 $19 (17... Bxe5+ $2 18. Kg1 $19)) 14... b4 {[%emt 0:00:09]} 15. Ne2 $4 {[%emt 0:04:10][%mdl 8192]} (15. Nxh6+ $18 Bxh6 16. Qxh6 bxc3 17. Bxg5 cxb2 (17... Bxd5+ $2 18. Kxh2 $18) 18. Bxd8 bxa1=R 19. Rxa1 Rxd8 20. c4 (20. Kxh2 Rd6 $11)) 15... Bxd5+ $19 {[%emt 0:03:47]} 16. Kxh2 {[%emt 0:00:09]} Bxb3 {[%emt 0:11:54]} 17. axb3 {[%emt 0:00:16] [#]} Qd6+ $1 {[%emt 0:00:24]} (17... Bxd4 $2 18. Nxh6+ (18. Qxh6 Qd6+ 19. Kh3 f5 $19) 18... Kg7 19. Nf5+ (19. Bxg5 Be5+ 20. Ng3 f6 $18) 19... Kg8 20. Nexd4 $18) 18. Ng3 {[%emt 0:02:01] [#]} Nh4 $2 {[%emt 0:03:14]} ({Better is} 18... Ne7 $1 $19 {[%cal Ob8c6] Strongly threatening ...Nbc6!} 19. Ne5 f5 (19... Qxd4 $2 20. Nc4 $19)) 19. Bxg5 $1 $15 {[%emt 0:13:28]} hxg5 {[%emt 0:00:11]} 20. Qxg5 {[%emt 0:00:08]} Ng6 {[%emt 0:01:08]} (20... f5 $1 $17 {[%cal Ob8d7]} 21. Qxh4 fxg4 22. Rxf8+ Kxf8 23. Qxg4 Nc6 (23... Bxd4 24. Qf3+ Kg7 25. Qxa8 $18)) 21. Nf6+ $11 {[%emt 0:03:22]} Bxf6 {[%emt 0:00:30]} 22. Rxf6 {[%emt 0:00:06]} Qxd4 {[%emt 0:00:42]} 23. Nf5 $1 {[%emt 0:01:51]} Qf4+ $1 {[%emt 0:04:04]} (23... Qxb2 24. Ne7+ Kg7 25. Rxg6+ fxg6 26. Qxg6+ Kh8 27. Qh6#) 24. Qxf4 {[%emt 0:00:11]} Nxf4 {[%emt 0:00:03]} 25. Ne7+ {[%emt 0:00:17]} Kg7 {[%emt 0:00:29]} 26. Rxf4 {[%emt 0:00:05]} Rh8+ {[%emt 0:00:20]} 27. Kg3 {[%emt 0:01:19]} Nd7 {[%emt 0:00:05]} 28. Rxb4 {[%emt 0:02:20]} Ne5 {[%emt 0:01:06]} 29. Rb7 {[%emt 0:00:46]} c6 {[%emt 0:03:07]} 30. Ra5 {[%emt 0:02:22]} Kf6 {[%emt 0:01:10]} 31. b4 {[%emt 0:02:01]} (31. Ra6 $11) 31... Rhe8 {[%emt 0:04:41]} ({Black should play} 31... Rh5 $17 {Hoping for ...Re8.} 32. Ra6 Re8 (32... Rg5+ 33. Kf4 $11) 33. Nd5+ Kf5 34. Ne7+ Ke4) 32. Rc5 $11 {[%emt 0:01:12]} (32. Rbxa7 $2 {too greedy.} Rxa7 33. Nd5+ cxd5 $19) 32... Rxe7 {[%emt 0:01:56]} 33. Rxe7 {[%emt 0:00:05]} Rg8+ {[%emt 0:00:12]} 34. Kh3 {[%emt 0:00:14]} Kxe7 {[%emt 0:00:08]} 35. Rxe5+ {[%emt 0:00:04]} Kd6 {[%emt 0:00:03]} 36. Ra5 {[%emt 0:00:12]} Re8 {[%emt 0:00:20]} 37. Rxa7 {[%emt 0:00:22]} Re2 {[%emt 0:00:13]} 38. c4 $1 {[%emt 0:00:43]} Rxb2 {[%emt 0:00:24]} 39. b5 {[%emt 0:00:05]} cxb5 {[%emt 0:00:23]} 40. cxb5 {[%emt 0:00:04]} Rxb5 {[%emt 0:00:04]} 41. Rxf7 {[%emt 0:00:04]} Ke5 {[%emt 0:00:50]} 1/2-1/2

[Event "7th Sharjah Masters 2024"]
[Site "Sharjah"]
[Date "2024.05.20"]
[Round "7.24"]
[White "Theodorou, Nikolas"]
[Black "Madaminov, Mukhiddin"]
[Result "1/2-1/2"]
[ECO "D02"]
[WhiteElo "2617"]
[BlackElo "2506"]
[Annotator "TA"]
[PlyCount "99"]
[EventDate "2024.05.13"]
[EventType "swiss"]
[EventCountry "UAE"]
[SourceTitle "playchess.com"]
[Source "ChessBase"]
[SourceQuality "1"]
[TimeControl "5400+30"]

{[%evp 16,99,7,7,8,0,0,0,1,-13,25,11,29,25,24,-12,18,0,17,-8,0,0,36,15,41,32,42,30,70,46,39,39,37,37,42,39,41,0,0,0,0,0,0,0,0,0,0,0,12,9,31,38,101,101,116,97,106,114,118,25,19,28,28,37,35,18,18,20,50,50,50,50,50,50,50,16,18,0,0,0,30,0,0,0,25,0]} 1. Nf3 {[%emt 0:00:05]} Nf6 {[%emt 0:01:22]} 2. d4 {[%emt 0:00:12]} d5 {[%emt 0:00:56]} 3. Bf4 {[%emt 0:00:29]} c5 {[%emt 0:01:55]} 4. e3 {[%emt 0:00:25]} Nc6 {[%emt 0:00:52]} 5. Nbd2 {[%emt 0:00:57]} e6 {[%emt 0:00:31]} 6. c3 {[%emt 0:00:20]} Be7 {[%emt 0:00:44]} 7. Ne5 {[%emt 0:00:08]} Nd7 $1 {[%emt 0:01:29][%mdl 4] is now more promising than 7...0-0. D02: 1 d4 d5 2 Nf3 sidelines, including 2...Nf6 3 g3 and 2...Nf6 3 Bf4.} 8. h4 {[%emt 0:00:10]} Ndxe5 {[%emt 0:06:27]} 9. dxe5 {[%emt 0:00:05]} f6 $146 {[%emt 0:02:01]} ({Predecessor:} 9... Rb8 10. Qg4 Bf8 11. h5 h6 12. Bd3 c4 13. Bc2 b5 14. a3 a5 15. O-O Bd7 {1-0 Tang,A (2538)-Nguyen,T (2569) Chess.com U20 Speed Qual 2020 (2.3)}) 10. exf6 {[%emt 0:07:21]} Bxf6 {[%emt 0:00:47]} 11. Qh5+ {[%emt 0:00:17]} g6 {[%emt 0:01:40]} 12. Qh6 {[%emt 0:00:06]} Qe7 {[%emt 0:03:51]} 13. Bg5 {[%emt 0:03:47]} Qg7 {[%emt 0:02:10]} 14. Qxg7 {[%emt 0:10:49]} Bxg7 {[%emt 0:00:35]} 15. Bd3 {[%emt 0:00:13]} Ne5 {[%emt 0:13:45]} 16. Bc2 {[%emt 0:06:19]} b6 {[%emt 0:02:13]} 17. Nf3 {[%emt 0:05:12]} Nxf3+ {[%emt 0:18:53]} 18. gxf3 {[%emt 0:00:04]} Bd7 {[%emt 0:09:41]} 19. O-O-O {[%emt 0:04:25]} Kf7 {[%emt 0:03:50]} 20. h5 {[%emt 0:06:11]} Bf6 {[%emt 0:05:05]} 21. f4 {[%emt 0:03:43]} gxh5 {[%emt 0:03:58]} 22. Rxh5 {[%emt 0:21:52]} (22. Bxf6 $5 Kxf6 23. c4 $16 (23. Rxh5 h6 $14)) 22... h6 $1 {[%emt 0:00:56]} 23. Bxf6 {[%emt 0:00:07]} Kxf6 {[%emt 0:00:08]} 24. Rdh1 {[%emt 0:00:05]} Kg7 {[%emt 0:00:57]} 25. Rg1+ {[%emt 0:03:44]} Kf7 {[%emt 0:01:14]} 26. Rg6 {[%emt 0:00:38]} Rag8 {[%emt 0:00:39]} 27. Rhxh6 {[%emt 0:01:06]} Rxh6 {[%emt 0:01:02]} 28. Rxh6 {[%emt 0:00:03]} Rg2 $1 {[%emt 0:00:33]} 29. Rh7+ {[%emt 0:00:27]} Ke8 {[%emt 0:00:19]} 30. f3 {[%emt 0:00:42]} a5 {[%emt 0:05:59]} 31. Rh6 {[%emt 0:04:20]} Ke7 {[%emt 0:07:11]} 32. Bd1 {[%emt 0:04:28]} Bb5 {[%emt 0:01:30]} 33. e4 {[%emt 0:05:56]} Rg1 {[%emt 0:03:15]} (33... dxe4 $14 34. fxe4 Bd3) 34. exd5 $16 {[%emt 0:04:35]} exd5 {[%emt 0:00:01] [#]} 35. f5 $1 {[%emt 0:00:07]} (35. Rxb6 $2 {is the wrong capture.} Be2 36. Kd2 (36. Rb7+ $2 Kd6 $19) 36... Bxd1 $19) 35... Bd3 {[%emt 0:00:59]} 36. Rxb6 {[%emt 0:03:04]} Bxf5 {[%emt 0:00:30]} 37. Kd2 {[%emt 0:03:58]} (37. Rc6 $16) 37... Rg2+ $1 $11 {[%emt 0:00:31]} 38. Ke3 {[%emt 0:00:19]} Bb1 {[%emt 0:00:06]} 39. a3 {[%emt 0:02:14]} d4+ $1 {[%emt 0:00:07]} 40. cxd4 {[%emt 0:00:32]} cxd4+ {[%emt 0:00:01]} 41. Kf4 {[%emt 0:00:06]} Rd2 {[%emt 0:00:31]} 42. Ba4 {[%emt 0:00:19]} d3 {[%emt 0:00:10]} 43. Ke3 {[%emt 0:01:22]} Re2+ {[%emt 0:00:35]} 44. Kd4 {[%emt 0:00:02]} Rf2 $1 {[%emt 0:00:00]} 45. Rb7+ {[%emt 0:00:36]} Kd6 {[%emt 0:00:21]} 46. Ke3 {[%emt 0:00:38]} Re2+ {[%emt 0:00:06]} 47. Kd4 {[%emt 0:00:02]} Rf2 {[%emt 0:00:01]} 48. Ke3 {[%emt 0:01:16]} Re2+ {[%emt 0:00:05]} 49. Kd4 {[%emt 0:00:27]} Rf2 {[%emt 0:04:28]} 50. Ke4 {[%emt 0:01:07]} 1/2-1/2

[Event "7th Sharjah Masters 2024"]
[Site "Sharjah"]
[Date "2024.05.20"]
[Round "7.25"]
[White "Safarli, Eltaj"]
[Black "Gholami Orimi, Mahdi"]
[Result "1/2-1/2"]
[ECO "C27"]
[WhiteElo "2597"]
[BlackElo "2470"]
[Annotator "TA"]
[PlyCount "36"]
[EventDate "2024.05.13"]
[EventType "swiss"]
[EventCountry "UAE"]
[SourceTitle "playchess.com"]
[Source "ChessBase"]
[SourceQuality "1"]
[TimeControl "5400+30"]

{[%evp 11,36,16,6,2,25,6,13,13,29,17,16,3,20,0,16,9,3,0,1,-4,-4,0,0,-9,-2,-14,-8]} 1. e4 {[%emt 0:00:03]} e5 {[%emt 0:00:10]} 2. Bc4 {[%emt 0:00:36]} Nf6 {[%emt 0:00:37]} 3. Nc3 {[%emt 0:00:50]} Nxe4 {[%emt 0:01:41]} 4. Qh5 {[%emt 0:02:08]} Nd6 {[%emt 0:00:11]} 5. Qxe5+ {[%emt 0:00:07]} Qe7 {[%emt 0:00:17]} 6. Qxe7+ {[%emt 0:00:05]} Bxe7 {[%emt 0:00:06]} 7. Be2 {[%emt 0:00:05]} O-O {[%emt 0:03:29]} 8. Nf3 {[%emt 0:02:36]} Nf5 {[%emt 0:01:24]} 9. d4 {[%emt 1:28:30]} Bb4 {[%emt 0:15:05]} 10. Bd2 {[%emt 0:00:00]} Bxc3 {[%emt 0:05:35] The position is equal.} 11. Bxc3 {[%emt 0:00:00]} Re8 {[%emt 0:00:23]} 12. Kd2 {[%emt 0:00:00]} d5 {[%emt 0:06:14]} 13. Rae1 {[%emt 0:00:00][%cal Oe2c4] next Bc4! is good for White.} Nc6 {[%emt 0:03:40]} 14. Bd3 {[%emt 0:00:00][%cal Re1e8] [#]} Bd7 {[%emt 0:02:27]} 15. h4 {[%emt 0:00:00]} f6 {[%emt 0:03:34]} 16. Rxe8+ {[%emt 0:00:00]} Rxe8 {[%emt 0:01:07]} 17. Bxf5 {[%emt 0:00:00]} Bxf5 {[%emt 0:00:10]} 18. Re1 {[%emt 0:00:00]} Kf7 {[%emt 0:05:15] Not much happened in this game.   Weighted Error Value: White=0.04 (flawless) /Black=0.04 (flawless) .  OK:         	White=4     	Black=5} 1/2-1/2

[Event "7th Sharjah Masters 2024"]
[Site "Sharjah"]
[Date "2024.05.20"]
[Round "7.26"]
[White "Gurel, Ediz"]
[Black "Assaubayeva, Bibisara"]
[Result "1-0"]
[ECO "E94"]
[WhiteElo "2578"]
[BlackElo "2481"]
[Annotator "TA"]
[PlyCount "93"]
[EventDate "2024.05.13"]
[EventType "swiss"]
[EventCountry "UAE"]
[SourceTitle "playchess.com"]
[Source "ChessBase"]
[SourceQuality "1"]
[TimeControl "5400+30"]

{[%evp 19,93,15,32,10,55,68,43,29,18,31,64,21,15,22,14,0,0,0,0,0,0,0,240,236,237,224,318,318,364,369,383,368,377,377,377,372,381,365,397,389,412,378,368,386,362,420,416,433,410,346,334,312,291,312,312,305,354,354,320,320,428,418,395,368,472,345,536,529,529,529,526,508,492,467,460,440]} 1. c4 {[%emt 0:00:05]} Nf6 {[%emt 0:01:10]} 2. Nc3 {[%emt 0:00:11]} g6 {[%emt 0:01:55]} 3. e4 {[%emt 0:00:12]} d6 {[%emt 0:00:05]} 4. d4 {[%emt 0:00:09]} Bg7 {[%emt 0:00:05]} 5. Be2 {[%emt 0:00:09]} O-O {[%emt 0:00:06]} 6. Nf3 {[%emt 0:00:04]} e5 {[%emt 0:00:08]} 7. O-O {[%emt 0:00:09]} exd4 {[%emt 0:02:42]} 8. Nxd4 {[%emt 0:00:07]} Nc6 {[%emt 0:00:05]} 9. Nc2 {[%emt 0:06:17]} Re8 {[%emt 0:00:36]} 10. f3 {[%emt 0:01:02]} Nh5 {[%emt 0:02:20]} 11. Nd5 {[%emt 0:00:16]} f5 {[%emt 0:05:08]} 12. g4 {[%emt 0:03:53]} Nf6 {[%emt 0:02:47]} 13. gxf5 {[%emt 0:01:38] White is slightly better.} gxf5 {[%emt 0:02:29]} 14. Bg5 {[%emt 0:01:59]} Ne5 {[%emt 0:04:36]} 15. f4 {[%emt 0:29:18][%cal Bf3f4,Bf4e5,Be5e6][%mdl 32] White is more active.} Nf7 {[%emt 0:05:00] Threatens to win with ...Nxg5.} 16. Bxf6 {[%emt 0:00:45]} (16. exf5 {looks sharper.} Bxf5 17. Bh5 Nxg5 18. fxg5 Nxd5 19. Rxf5 Ne3 20. Nxe3 Rxe3 21. Qg4) 16... Bxf6 {[%emt 0:00:02]} 17. Bh5 {[%emt 0:04:37] Hoping for Bxf7+.} Rf8 {[%emt 0:06:24]} 18. Kh1 $36 {[%emt 0:02:11][%mdl 2048] White has the initiative.} Nh6 {[%emt 0:05:06]} 19. e5 {[%emt 0:11:35]} dxe5 {[%emt 0:09:07]} 20. fxe5 {[%emt 0:00:04]} Bg7 {[%emt 0:09:16] Black is on the road to losing.} (20... Bxe5 $11 21. Qe2 Bd6) 21. Qe2 $18 {[%emt 0:02:36]} Be6 {[%emt 0:03:37]} 22. Rad1 {[%emt 0:04:58][%cal Od5f6] aiming for Nf6+!} Bxd5+ {[%emt 0:06:20]} (22... Kh8 $142 23. Nf4 Bd7) 23. Rxd5 {[%emt 0:00:56]} ({Weaker is} 23. cxd5 Kh8 24. e6 Qe7 $18) 23... Qe7 {[%emt 0:01:03] [#] Black is weak on the light squares} 24. e6 $1 {[%emt 0:00:29]} Rad8 {[%emt 0:00:54] [#] Inhibits Rd7.} 25. Rfd1 $1 {[%emt 0:00:42] And now Rxd8 would win.} Rd6 {[%emt 0:02:30]} 26. Rxd6 {[%emt 0:01:50]} cxd6 {[%emt 0:00:02] [#]} 27. c5 {[%emt 0:00:22][%cal Bc4c5,Bc5d6][%mdl 544]} Be5 {[%emt 0:05:13]} 28. cxd6 {[%emt 0:01:59]} Qxe6 {[%emt 0:00:52]} 29. d7 {[%emt 0:03:00]} Rd8 {[%emt 0:00:06][%cal Oh6g4]} 30. Nd4 {[%emt 0:02:47]} Qe7 {[%emt 0:06:33]} 31. Qc4+ {[%emt 0:02:28]} Kh8 {[%emt 0:01:13][%cal Oe7h4]} 32. Ne6 {[%emt 0:00:29]} Rxd7 {[%emt 0:02:29]} 33. Qc8+ {[%emt 0:00:06]} Ng8 {[%emt 0:00:01]} 34. Rxd7 {[%emt 0:00:39]} Qh4 {[%emt 0:00:04][%csl Ge5][%cal Rh4h2] [#]} 35. Qxg8+ $3 {[%emt 0:00:05][%mdl 512]} Kxg8 {[%emt 0:00:01][%csl Ge5][%cal Rh4h2]} 36. Rd8+ {[%emt 0:00:12]} Qxd8 {[%emt 0:00:02]} 37. Nxd8 {[%emt 0:00:05]} Bxb2 {[%emt 0:00:10]} 38. Nxb7 {[%emt 0:00:03]} Kg7 {[%emt 0:01:04]} 39. Kg2 {[%emt 0:00:22]} Ba3 {[%emt 0:00:36]} 40. Na5 {[%emt 0:00:27]} Kf6 {[%emt 0:00:18]} 41. Be2 {[%emt 0:00:19]} h6 {[%emt 0:00:14]} 42. Kf3 {[%emt 0:00:37]} Kg5 {[%emt 0:00:31]} (42... Bd6 $142 43. h3 Kg5) 43. Nc4 {[%emt 0:00:10] White is clearly winning.} Bc5 {[%emt 0:00:07]} 44. Bd3 {[%emt 0:00:16]} Bg1 {[%emt 0:00:11]} 45. h3 {[%emt 0:00:06]} Bc5 {[%emt 0:00:29]} 46. Ne3 {[%emt 0:00:22]} f4 {[%emt 0:00:15]} 47. Ng2 {[%emt 0:00:17] Weighted Error Value: White=0.07 (flawless) /Black=0.26 (precise) .  Loses game:     	---       	Black=1      Mistake:       	---       	Black=2      Inaccurate:     	White=1     	Black=3      OK:         	White=21    	Black=15     Best:        	White=2     	Black=2      Strong:       	White=2     	---} 1-0

[Event "7th Sharjah Masters 2024"]
[Site "Sharjah"]
[Date "2024.05.20"]
[Round "7.27"]
[White "Adhiban, B.."]
[Black "Sanal, Vahap"]
[Result "1/2-1/2"]
[ECO "C84"]
[WhiteElo "2523"]
[BlackElo "2566"]
[Annotator "TA"]
[PlyCount "25"]
[EventDate "2024.05.13"]
[EventType "swiss"]
[EventCountry "UAE"]
[SourceTitle "playchess.com"]
[Source "ChessBase"]
[SourceQuality "1"]
[TimeControl "5400+30"]

{[%evp 19,25,16,26,12,20,0,8,3]} 1. e4 {[%emt 0:00:09]} e5 {[%emt 0:04:00]} 2. Nf3 {[%emt 0:00:14]} Nc6 {[%emt 0:00:08]} 3. Bb5 {[%emt 0:00:10][%cal Bf1b5,Bb5a4,Ba4b3][%mdl 32]} a6 {[%emt 0:01:03]} 4. Ba4 {[%emt 0:00:05]} Nf6 {[%emt 0:00:15]} 5. Nc3 {[%emt 0:00:17]} Be7 {[%emt 0:07:25]} 6. O-O {[%emt 0:08:05]} b5 {[%emt 0:01:16]} 7. Bb3 {[%emt 0:00:02]} O-O {[%emt 0:02:36]} 8. a4 {[%emt 1:25:28]} Rb8 {[%emt 0:05:45]} 9. axb5 {[%emt 0:00:00]} axb5 {[%emt 0:00:07]} 10. d3 {[%emt 0:00:00]} d6 {[%emt 0:00:26]} 11. Nd5 {[%emt 0:00:00]} Nxd5 {[%emt 0:02:49]} 12. exd5 {[%emt 0:00:00]} Nd4 {[%emt 0:00:32]} 13. Nxd4 {[%emt 0:00:00] An uneventful encounter.   OK:         	---       	Black=1      Best:        	White=1     	Black=1} 1/2-1/2

[Event "7th Sharjah Masters 2024"]
[Site "Sharjah"]
[Date "2024.05.20"]
[Round "7.28"]
[White "Nesterov, Arseniy"]
[Black "Esipenko, Andrey"]
[Result "1/2-1/2"]
[ECO "E94"]
[WhiteElo "2590"]
[BlackElo "2704"]
[Annotator "TA"]
[PlyCount "34"]
[EventDate "2024.05.13"]
[EventType "swiss"]
[EventCountry "UAE"]
[SourceTitle "playchess.com"]
[Source "ChessBase"]
[SourceQuality "1"]
[TimeControl "5400+30"]

{[%evp 19,34,58,106,95,95,89,97,-8,0,0,0,0,0,0,0,0,0]} 1. d4 {[%emt 0:00:01]} Nf6 {[%emt 0:00:13]} 2. c4 {[%emt 0:00:06]} g6 {[%emt 0:00:12]} 3. Nc3 {[%emt 0:01:12]} Bg7 {[%emt 0:00:10]} 4. e4 {[%emt 0:00:06]} d6 {[%emt 0:00:04]} 5. Be2 {[%emt 0:00:08]} O-O {[%emt 0:00:22]} 6. Nf3 {[%emt 0:00:21]} e5 {[%emt 0:00:12]} 7. O-O {[%emt 0:01:51]} exd4 {[%emt 0:00:07]} 8. Nxd4 {[%emt 0:00:05]} Re8 {[%emt 0:00:05]} 9. f3 {[%emt 0:02:04]} c6 {[%emt 0:00:05]} 10. Kh1 {[%emt 0:08:33]} d5 {[%emt 0:00:32]} (10... Qe7 $14) 11. cxd5 $16 {[%emt 0:05:02]} cxd5 {[%emt 0:00:06] [#]} 12. Bg5 $1 {[%emt 0:02:34]} Nc6 {[%emt 0:00:16] [#]} 13. exd5 {[%emt 0:32:21] White is more active.} (13. Bb5 $1 $16 h6 14. Bxf6 (14. Nxc6 bxc6 15. Bxc6 hxg5 $11) 14... Qxf6 15. exd5) 13... Nxd4 $11 {[%emt 0:05:14] The position is equal.} 14. Qxd4 {[%emt 0:00:03]} Nxd5 {[%emt 0:06:35]} 15. Qxd5 {[%emt 0:00:26]} Qxd5 {[%emt 0:00:47]} 16. Nxd5 {[%emt 0:00:01]} Rxe2 {[%emt 0:00:15]} 17. Rae1 {[%emt 0:00:16]} Rxe1 {[%emt 0:06:31] White did not feel at home in the position after the opening.   Weighted Error Value: White=0.28 (precise) /Black=0.09 (flawless) .  Mistake:       	White=1     	---        OK:         	White=1     	Black=3      Best:        	---       	Black=2      Strong:       	White=1     	---} 1/2-1/2